bitfinex/quotes_ETHUSD_20220113
["timestamp","ask_amount","ask_price","bid_price","bid_amount"]
[1642087499615,0.00113685,3318.7,3318.1,0.00227369]
[1642087500015,0.00170527,3318.8,3318.0,0.00284212]
[1642087500265,0.00170527,3318.8,3318.1,0.55525159]
[1642087500666,0.00170527,3318.8,3318.3,1.23955598]
[1642087501067,0.00170527,3318.8,3318.6,0.61198597]
[1642087501870,0.00170527,3318.8,3318.5,0.7531984]
[1642087502071,0.49986602,3318.7,3318.5,0.7531984]
[1642087502371,0.49986602,3318.7,3317.6,0.56501737]
[1642087502372,0.358,3318.7,3317.6,0.56501737]
[1642087502768,0.49986602,3318.5,3317.9,1.30281428]
[1642087502968,0.06076152,3318.4,3317.9,0.00341054]
[1642087503168,0.06076152,3318.4,3317.6,0.56501737]
[1642087503169,0.41876152,3318.4,3318.0,0.00284212]
[1642087503368,0.358,3318.4,3317.9,0.00341054]
[1642087503570,0.49986602,3317.9,3317.7,0.00454739]
[1642087503775,0.85786602,3317.9,3317.7,0.00454739]
[1642087504037,0.358,3317.9,3317.7,0.00454739]
[1642087504227,2.99986602,3317.7,3317.6,0.00511581]
[1642087504827,2.5,3317.7,3317.6,0.00511581]
[1642087505027,0.09643475,3317.5,3317.2,0.11174221]
[1642087505228,0.09643475,3317.5,3316.4,1.54390055]
[1642087505229,3.29986602,3317.6,3316.4,1.54390055]
[1642087505428,0.07477354,3317.5,3317.3,0.00170527]
[1642087505629,3.29986602,3317.6,3317.3,0.00170527]
[1642087505828,2.8,3317.6,3317.3,0.00170527]
[1642087506030,0.00113685,3317.8,3317.3,0.81407117]
[1642087506230,0.00113685,3317.5,3317.3,0.81407117]
[1642087506428,0.00113685,3317.5,3317.2,1.5071309]
[1642087506429,0.07395548,3317.6,3317.2,0.75357]
[1642087506631,0.00180911,3317.3,3317.2,0.75357]
[1642087507033,0.06385129,3317.7,3317.2,0.75357]
[1642087507230,0.00284212,3317.8,3317.2,0.75357]
[1642087507231,0.05451457,3317.5,3317.2,0.75357]
[1642087507432,0.49991709,3317.3,3317.2,2.21720954]
[1642087507631,0.49991709,3317.3,3317.2,2.7746569]
[1642087508272,0.00113685,3317.5,3317.3,5.05]
[1642087508470,0.00113685,3317.5,3317.3,5.35]
[1642087509271,0.00113685,3317.5,3317.3,5.05]
[1642087509471,0.00113685,3317.5,3317.3,5.35]
[1642087509871,0.00113685,3317.5,3317.3,5.05]
[1642087510774,0.06283468,3317.5,3317.3,5.35]
[1642087510974,3.0,3317.6,3317.4,6.66256923]
[1642087510975,0.3822,3317.6,3317.4,6.66256923]
[1642087511177,2.65261922,3319.1,3318.9,0.58620023]
[1642087511381,0.49978145,3319.0,3318.8,0.7531833]
[1642087511645,0.49978145,3319.0,3318.7,1.5063665]
[1642087511834,0.49978145,3319.0,3318.6,0.7532]
[1642087512032,2.65261922,3319.2,3318.4,1.5064]
[1642087512235,0.49978145,3318.7,3318.2,13.5729]
[1642087512433,0.49978145,3318.7,3317.9,0.43892415]
[1642087512434,0.09795791,3318.6,3318.0,0.7534248]
[1642087512732,0.00568423,3318.5,3317.6,0.75355]
[1642087512931,0.00568423,3318.5,3317.8,1.41850807]
[1642087513132,0.00511581,3318.4,3317.8,1.41850807]
[1642087513332,0.00511581,3318.4,3318.0,0.50618921]
[1642087513532,0.00454738,3318.3,3318.0,1.25960451]
[1642087513931,0.00397896,3318.2,3318.0,1.25960451]
[1642087514332,0.00341054,3318.1,3318.0,1.25960451]
[1642087514533,1.24768059,3319.7,3318.1,6.65]
[1642087514737,1.24768059,3319.7,3319.2,0.55526567]
[1642087514934,5.4996,3319.3,3319.2,0.55526567]
[1642087515568,5.99951714,3319.3,3319.2,1.88862073]
[1642087516869,5.99951714,3319.3,3319.2,1.88246842]
[1642087517072,8.99951714,3319.3,3319.2,1.88246842]
[1642087517870,8.4996,3319.3,3319.2,1.88246842]
[1642087518074,5.4996,3319.3,3319.2,1.88246842]
[1642087518672,5.4996,3319.3,3319.1,1.7308843]
[1642087519924,5.4996,3319.3,3319.2,0.56331657]
[1642087520123,0.49991714,3319.6,3319.2,0.67767]
[1642087520328,0.49991714,3319.6,3319.4,0.7529602]
[1642087520528,0.00454739,3320.0,3319.5,0.3]
[1642087520822,0.49991714,3319.9,3319.4,1.35533]
[1642087521023,0.49991714,3319.9,3319.6,0.00227369]
[1642087521322,1.1134037,3320.4,3319.6,0.00227369]
[1642087521522,0.3602737,3320.4,3319.6,0.00227369]
[1642087521826,0.3602737,3320.4,3319.5,0.57610719]
[1642087521827,0.49764345,3319.6,3319.5,0.57610719]
[1642087522021,6.65397896,3320.3,3319.5,0.87610719]
[1642087522428,0.00341054,3320.2,3319.5,1.02670719]
[1642087522879,0.00284212,3320.1,3319.5,1.02670719]
[1642087523279,0.49975264,3319.6,3319.5,1.02670719]
[1642087524684,2.35946885,3320.2,3319.5,1.02670719]
[1642087525088,0.50259476,3320.1,3319.6,1.26488618]
[1642087525284,6.34243894,3320.9,3319.8,0.903386]
[1642087525484,6.34243894,3320.9,3319.9,0.52703]
[1642087525485,2.66153894,3320.8,3319.9,0.52703]
[1642087525683,0.00341054,3320.7,3319.9,0.52703]
[1642087526183,3.16153141,3320.8,3319.9,0.52703]
[1642087526184,0.00284211,3320.6,3320.0,0.9034413]
[1642087526388,0.00284211,3320.6,3320.4,0.60524463]
[1642087526621,3.16153141,3320.8,3320.4,0.60524463]
[1642087526822,2.358358,3320.7,3320.5,1.20128633]
[1642087527025,2.35949485,3320.7,3320.5,1.50128633]
[1642087527418,2.7,3320.6,3320.5,2.55503633]
[1642087527819,0.28338485,3320.7,3320.5,2.55503633]
[1642087528121,0.00113685,3320.7,3320.5,2.55503633]
[1642087528522,0.00113685,3320.7,3320.5,1.05375]
[1642087528720,0.00113685,3320.7,3319.9,7.1549]
[1642087528925,0.08672568,3320.6,3319.9,7.9077785]
[1642087529125,0.49999247,3320.1,3320.0,0.00284212]
[1642087529321,0.00113685,3320.7,3320.0,0.00284212]
[1642087529521,0.00113685,3320.7,3320.0,1.87766024]
[1642087529722,0.00113685,3320.7,3320.6,5.43943071]
[1642087529922,1.0120064,3321.4,3320.6,0.53943071]
[1642087530124,1.0120064,3321.4,3320.6,0.83943071]
[1642087530396,0.00341054,3321.3,3320.6,0.53943071]
[1642087530585,0.49975148,3321.2,3320.6,0.53943071]
[1642087530782,0.50259359,3321.2,3320.6,0.53943071]
[1642087530982,0.00227369,3321.1,3320.5,1.8804367]
[1642087531181,0.00227369,3321.1,3320.5,1.5793967]
[1642087531384,1.0120064,3321.4,3320.5,1.2793967]
[1642087531385,0.49975148,3320.9,3320.5,1.2793967]
[1642087531582,0.49975148,3320.9,3320.5,0.52681]
[1642087531784,0.09795791,3320.8,3320.3,1.05361]
[1642087531983,2.87893762,3321.0,3320.3,1.05361]
[1642087532184,2.87893762,3321.0,3320.4,0.00170527]
[1642087532185,0.00170527,3321.0,3320.4,0.00170527]
[1642087532385,0.00113684,3320.9,3320.4,0.00170527]
[1642087532585,0.358,3320.8,3320.4,0.00170527]
[1642087532798,0.49804621,3320.4,3319.9,7.1549]
[1642087532987,0.00170527,3320.7,3320.0,0.0022737]
[1642087533288,3.6509,3321.3,3320.0,0.0022737]
[1642087533289,0.00113684,3320.6,3320.0,0.0022737]
[1642087533686,0.358,3321.1,3320.0,0.7550748]
[1642087533885,0.358,3321.1,3320.1,0.05246121]
[1642087534122,0.00341054,3321.0,3320.1,0.05416648]
[1642087534323,0.4998535,3320.3,3320.2,0.00113685]
[1642087534522,0.4998535,3320.3,3320.2,4.50113685]
[1642087534718,0.4998535,3320.3,3320.2,4.5]
[1642087534919,0.4998535,3320.3,3320.2,0.61995921]
[1642087535119,0.00284211,3320.9,3320.2,0.61995921]
[1642087535519,0.50212719,3320.8,3320.5,0.45161]
[1642087535718,0.50212719,3320.8,3320.5,0.30107]
[1642087535918,0.00170527,3320.7,3320.5,0.60107]
[1642087536117,0.00170527,3320.7,3320.5,0.55107]
[1642087536321,0.00113684,3320.6,3320.5,0.55107]
[1642087538168,0.00113684,3320.6,3320.5,0.30107]
[1642087538768,0.00113684,3320.6,3320.5,0.60107]
[1642087538971,0.00113684,3320.6,3320.3,0.60214]
[1642087539169,0.00113684,3320.6,3320.2,0.00113685]
[1642087539170,0.01392669,3320.5,3320.2,0.00113685]
[1642087539368,0.35913684,3320.6,3320.2,0.00113685]
[1642087539969,0.49871665,3320.2,3319.6,1.48168971]
[1642087540175,0.49871665,3320.2,3319.4,0.47388643]
[1642087540476,0.0114792,3320.5,3319.8,0.30124]
[1642087540477,0.00170527,3320.5,3319.8,0.30124]
[1642087540870,6.65,3320.2,3319.1,6.5699]
[1642087541070,6.65,3320.2,3318.7,1.22532427]
[1642087541071,0.358,3320.1,3318.7,1.22532427]
[1642087541370,0.35913685,3320.1,3319.2,0.00397897]
[1642087541629,1.35913685,3320.1,3319.2,0.00397897]
[1642087541830,1.35913685,3320.1,3319.3,0.02817915]
[1642087541831,0.35913685,3320.1,3319.3,0.02817915]
[1642087542128,0.35913685,3320.1,3319.1,0.60251]
[1642087542129,0.46776369,3319.2,3319.1,0.60251]
[1642087542328,6.65454739,3320.0,3319.1,0.60251]
[1642087542329,0.358,3319.8,3319.1,0.60251]
[1642087542728,0.00284212,3319.7,3319.2,0.30126]
[1642087543131,0.0022737,3319.6,3319.2,0.30126]
[1642087543329,0.01981515,3319.5,3319.2,0.30126]
[1642087543530,0.02152042,3319.5,3319.2,0.30126]
[1642087543734,0.1984468,3319.2,3318.1,0.90386]
[1642087543929,0.358,3319.1,3318.1,0.90386]
[1642087544129,0.358,3319.1,3318.5,0.00397896]
[1642087544830,0.358,3319.1,3318.4,0.00454738]
[1642087545268,0.03314263,3319.0,3318.4,0.00454738]
[1642087545468,0.49227927,3318.8,3318.4,0.00454738]
[1642087545872,0.35913685,3319.4,3318.4,0.00454738]
[1642087546270,0.35913685,3319.4,3318.4,8.15083912]
[1642087546468,0.35913685,3319.4,3318.5,0.0338782]
[1642087546672,0.35913685,3319.4,3318.4,7.04654738]
[1642087546870,0.35913685,3319.4,3318.6,0.00341054]
[1642087547170,0.49981359,3318.9,3318.6,0.00341054]
[1642087549547,2.66430523,3318.8,3318.6,0.00341054]
[1642087549744,9.32850127,3318.7,3318.6,0.00341054]
[1642087549944,6.65,3318.7,3318.0,0.00682108]
[1642087550145,3.16057033,3318.6,3318.0,0.00682108]
[1642087550347,0.358,3318.5,3318.0,0.00682108]
[1642087550646,0.358,3318.5,3317.5,0.46175319]
[1642087550647,0.05269532,3318.4,3317.5,0.46175319]
[1642087550849,0.3323081,3318.6,3317.5,0.00966319]
[1642087550850,0.49981359,3318.0,3317.5,0.00966319]
[1642087551049,0.49981359,3318.0,3317.6,0.00909477]
[1642087551345,0.49981359,3318.0,3316.8,1.13659268]
[1642087551346,0.358,3318.2,3317.4,0.54914064]
[1642087551746,0.358,3318.2,3317.5,0.00966319]
[1642087552149,0.358,3318.2,3317.6,0.00744365]
[1642087552547,0.49981359,3318.0,3317.7,0.00852635]
[1642087552770,0.01613844,3317.9,3317.7,0.00852635]
[1642087552972,0.49981359,3318.0,3317.8,0.00935057]
[1642087553170,0.01608839,3317.9,3317.5,0.00966319]
[1642087553374,0.01608839,3317.9,3316.5,6.37588632]
[1642087553572,1.25336359,3318.0,3316.7,8.6292]
[1642087553774,1.25336359,3318.0,3316.8,0.01364216]
[1642087554180,3.99647044,3318.0,3316.8,0.01364216]
[1642087554375,1.25336359,3318.0,3316.8,1.66886483]
[1642087554576,1.25336359,3318.0,3316.9,0.0252087]
[1642087554778,1.25336359,3318.0,3316.9,0.60157314]
[1642087554978,0.49981359,3318.0,3317.0,0.01250531]
[1642087555178,0.49981359,3318.0,3317.3,0.48808988]
[1642087555378,0.49981359,3318.0,3317.4,0.01915415]
[1642087555578,5.2,3317.9,3316.7,4.07992237]
[1642087555777,0.03566535,3317.8,3316.7,4.07992237]
[1642087555981,0.0022737,3317.8,3316.8,0.00341054]
[1642087556177,0.00170527,3317.7,3316.8,0.00341054]
[1642087556624,0.00113685,3317.6,3316.8,0.00341054]
[1642087556824,0.00113685,3317.6,3316.9,1.17933292]
[1642087557026,0.7558237,3317.8,3316.9,1.67416419]
[1642087557226,0.0022737,3317.8,3317.0,0.00227369]
[1642087557427,0.00170527,3317.7,3317.0,0.00227369]
[1642087557726,0.00113685,3317.6,3317.0,0.00227369]
[1642087558127,0.0022737,3317.8,3317.0,0.00227369]
[1642087558326,0.75358,3317.5,3317.0,0.00227369]
[1642087558530,0.01148236,3317.4,3317.0,0.00227369]
[1642087558727,0.00170527,3317.7,3317.0,0.00227369]
[1642087558927,3.18166268,3317.8,3317.0,0.00227369]
[1642087558928,1.11289685,3317.6,3317.0,0.00227369]
[1642087559132,1.11289685,3317.6,3316.0,6.94520055]
[1642087559133,0.4975399,3317.0,3316.2,5.8985]
[1642087559328,0.4975399,3317.0,3316.2,5.90304739]
[1642087559329,0.75383,3316.4,3316.2,5.90304739]
[1642087559529,0.76702163,3316.4,3316.2,0.00454739]
[1642087559730,0.75383,3316.4,3316.2,0.00454739]
[1642087559930,0.75383,3316.4,3316.1,0.00511581]
[1642087560374,3.0153594,3316.7,3316.1,0.00511581]
[1642087560375,1.50766,3316.7,3316.1,0.00511581]
[1642087560573,4.2668,3317.2,3316.1,0.00511581]
[1642087560574,1.507577,3317.1,3316.2,0.04526259]
[1642087560774,1.507577,3317.1,3316.1,0.00511581]
[1642087560775,0.49995251,3316.6,3316.1,0.00511581]
[1642087560974,0.49995251,3316.6,3316.3,0.00397897]
[1642087560975,0.04024057,3316.5,3316.3,0.00397897]
[1642087561282,0.04024057,3316.5,3316.1,0.00511581]
[1642087561283,0.75399,3316.5,3316.1,0.00511581]
[1642087561477,0.75385,3316.4,3316.1,0.00511581]
[1642087561674,0.5150467,3316.3,3316.1,0.00511581]
[1642087561873,0.49995251,3316.3,3316.1,0.00511581]
[1642087562074,0.7539876,3316.3,3316.1,0.00511581]
[1642087562273,1.41185,3316.4,3316.1,0.00511581]
[1642087562475,0.4948367,3316.1,3316.0,0.120432]
[1642087562674,1.05396,3316.1,3316.0,0.120432]
[1642087562875,4.70113684,3316.3,3316.0,0.120432]
[1642087563075,0.00113684,3316.3,3316.0,0.120432]
[1642087563375,0.00113684,3316.3,3316.1,0.02001858]
[1642087563576,0.00113684,3316.3,3316.2,1.93770653]
[1642087564221,0.00113684,3316.3,3316.0,0.120432]
[1642087564423,0.0117173,3316.2,3316.0,0.120432]
[1642087564721,0.7656873,3316.2,3316.0,0.120432]
[1642087564922,1.26565151,3316.2,3316.0,0.120432]
[1642087565122,1.25393421,3316.2,3316.0,0.120432]
[1642087565323,2.00790261,3316.2,3316.0,0.120432]
[1642087565523,1.25393261,3316.2,3316.0,0.67684497]
[1642087565727,0.49996421,3316.2,3316.0,0.67684497]
[1642087566124,0.00113684,3316.3,3316.0,0.67684497]
[1642087567524,0.00113684,3316.3,3316.0,0.120432]
[1642087567788,0.01465682,3316.2,3316.0,0.120432]
[1642087567975,0.00113684,3316.3,3316.0,0.120432]
[1642087569477,0.01931296,3316.2,3316.0,0.120432]
[1642087569777,0.37731296,3316.2,3316.0,0.120432]
[1642087569977,0.658,3316.2,3315.1,6.32311235]
[1642087570176,0.7540092,3315.9,3315.1,6.32311235]
[1642087570378,0.658,3316.2,3315.6,1.37061068]
[1642087570578,0.49996421,3316.0,3315.6,1.97509851]
[1642087570876,0.49996421,3316.0,3315.7,0.0022737]
[1642087571077,0.00113684,3316.3,3315.7,0.0022737]
[1642087571284,0.49996421,3315.8,3315.7,0.0022737]
[1642087572524,0.79996421,3315.8,3315.3,0.00454739]
[1642087572730,0.49996421,3315.8,3315.3,0.00454739]
[1642087573027,0.79996421,3315.8,3315.4,0.0131496]
[1642087573223,0.79996421,3315.8,3315.3,0.50930902]
[1642087573424,0.03316246,3315.7,3315.5,0.00341054]
[1642087573624,0.79996421,3315.8,3315.4,0.00397897]
[1642087573824,0.49996421,3315.8,3315.3,0.00454739]
[1642087574126,0.49996421,3315.8,3315.7,3.5]
[1642087574523,0.49996421,3315.8,3315.7,3.5022737]
[1642087575975,3.84996421,3315.8,3315.7,3.5022737]
[1642087577076,7.34996421,3315.8,3315.7,3.5022737]
[1642087577677,3.84996421,3315.8,3315.7,3.5022737]
[1642087578078,6.84996421,3315.8,3315.7,3.5022737]
[1642087578276,9.53135119,3315.8,3315.7,3.5022737]
[1642087578476,9.03138698,3315.8,3315.7,3.5022737]
[1642087578676,6.35,3315.8,3315.7,3.00230949]
[1642087579326,3.35,3315.8,3315.7,2.50244524]
[1642087580023,3.35,3315.8,3315.7,2.00258099]
[1642087580425,3.35,3315.8,3315.7,1.85476356]
[1642087580627,3.35,3315.8,3315.7,0.0022737]
[1642087581227,3.89977312,3315.7,3314.8,1.7669141]
[1642087581428,0.7540234,3315.5,3315.2,0.00284211]
[1642087582026,0.7540234,3315.5,3314.8,0.00511581]
[1642087582426,1.5081034,3315.5,3314.8,0.00511581]
[1642087582627,0.7541083,3315.2,3315.1,3.5]
[1642087582873,1.05408,3315.5,3315.1,3.5]
[1642087583072,1.05408,3315.5,3315.1,3.50341054]
[1642087583873,1.05408,3315.5,3315.2,0.04255824]
[1642087584178,0.3,3315.5,3315.3,0.00227369]
[1642087584380,0.49970223,3315.6,3315.3,0.00227369]
[1642087584778,4.60403,3315.7,3315.3,0.00227369]
[1642087584979,7.14970223,3315.4,3315.3,0.00227369]
[1642087585179,7.44970223,3315.4,3315.3,0.00227369]
[1642087585380,8.63782223,3315.4,3315.3,0.00227369]
[1642087585583,8.63782223,3315.4,3315.1,3.5]
[1642087585584,6.65,3315.3,3315.1,3.5]
[1642087585780,0.434,3315.2,3315.1,3.5]
[1642087585979,0.434,3315.2,3313.3,0.01277357]
[1642087585980,0.03147748,3315.1,3313.3,0.01277357]
[1642087586181,0.434,3315.0,3313.8,0.45907746]
[1642087586379,0.734,3315.0,3313.3,5.9525]
[1642087586623,0.1168,3314.9,3313.3,5.9525]
[1642087586823,0.434,3314.8,3313.0,0.44804283]
[1642087587030,0.75447,3314.5,3312.8,0.58836577]
[1642087587227,0.434,3314.4,3314.2,0.00625266]
[1642087587423,0.49344957,3314.1,3312.7,13.2505]
[1642087587626,3.3248181,3314.0,3312.8,0.00795793]
[1642087587928,3.3248181,3314.0,3312.0,0.01224456]
[1642087587929,0.7548271,3312.7,3312.2,0.04289418]
[1642087588129,0.434,3313.5,3312.3,0.5984448]
[1642087588329,2.2641358,3313.6,3313.0,0.52954408]
[1642087588530,0.00341054,3313.4,3313.0,1.20611713]
[1642087588729,0.30397897,3313.5,3313.0,1.20611713]
[1642087588928,0.00284212,3313.3,3313.0,0.70632822]
[1642087589132,0.01240778,3313.2,3313.0,0.70632822]
[1642087589330,0.0022737,3313.2,3313.1,5.64526259]
[1642087589535,1.508751,3314.5,3313.9,0.51409807]
[1642087589728,1.508751,3314.5,3313.2,7.3912]
[1642087589933,0.12556026,3313.9,3313.3,0.31096669]
[1642087590130,0.12556026,3313.9,3313.2,7.3912]
[1642087590400,0.00958042,3313.8,3313.2,7.3912]
[1642087590588,0.00568424,3313.8,3313.5,0.49187136]
[1642087590790,0.00511581,3313.7,3313.5,0.49187136]
[1642087590988,0.00511581,3313.7,3313.2,7.3912]
[1642087591190,0.02312217,3313.5,3313.2,7.3912]
[1642087591389,0.00454739,3313.6,3313.2,7.3912]
[1642087591591,0.00341054,3313.4,3313.2,6.2112]
[1642087591790,0.00397897,3313.5,3313.3,1.32552968]
[1642087591988,0.4998208,3314.3,3313.9,0.46178474]
[1642087592490,0.00795793,3314.2,3313.9,0.46178474]
[1642087592889,0.00738951,3314.1,3314.0,1.28397754]
[1642087593889,0.00738951,3314.1,3313.2,7.3377]
[1642087593890,3.05738951,3314.1,3313.2,7.3377]
[1642087594341,0.76133728,3314.0,3313.2,7.3377]
[1642087594538,0.76133728,3314.0,3313.6,0.57674677]
[1642087594743,0.76133728,3314.0,3313.2,7.3377]
[1642087594744,0.50607346,3313.9,3313.2,7.3377]
[1642087594939,0.00974333,3313.8,3313.2,7.3377]
[1642087595136,0.00568424,3313.8,3313.3,4.96394819]
[1642087595338,0.00511581,3313.7,3313.3,4.96394819]
[1642087595738,0.00454739,3313.6,3313.3,5.47108978]
[1642087596140,0.00397897,3313.5,3313.3,5.47108978]
[1642087596538,1.508962,3314.0,3313.3,4.96394819]
[1642087596539,0.00341054,3313.4,3313.3,4.96394819]
[1642087596739,0.00341054,3313.4,3313.3,3.5]
[1642087596941,0.43741054,3313.4,3313.3,3.5]
[1642087597794,0.43741054,3313.4,3313.3,3.0001792]
[1642087597992,0.73741054,3313.4,3313.3,3.0001792]
[1642087598193,0.73741054,3313.4,3313.3,2.50023204]
[1642087598393,0.43741054,3313.4,3313.3,2.50023204]
[1642087598595,0.73741054,3313.4,3313.3,2.50023204]
[1642087598793,0.7546759,3313.1,3312.7,1.47553017]
[1642087598995,0.7546759,3313.1,3312.4,5.3656]
[1642087599195,0.01059765,3313.0,3312.4,5.3656]
[1642087599395,0.01059765,3313.0,3312.5,0.00170527]
[1642087599396,0.00113685,3313.0,3312.5,0.00170527]
[1642087599595,0.434,3312.9,3312.5,0.00170527]
[1642087599795,0.434,3312.8,3312.5,0.00170527]
[1642087599997,0.434,3312.7,3312.5,0.00170527]
[1642087600196,0.434,3312.7,3312.6,1.26823398]
[1642087600596,0.00113685,3313.0,3312.6,1.56937082]
[1642087600800,0.00113685,3313.0,3312.6,1.06942365]
[1642087600996,0.02096668,3312.9,3312.6,1.06942365]
[1642087601201,0.00113685,3313.0,3312.6,1.06942365]
[1642087601397,0.00113685,3313.0,3312.6,0.71959123]
[1642087601624,1.18867,3313.2,3313.0,0.05121106]
[1642087601822,3.65,3313.1,3312.6,0.57091401]
[1642087602027,0.02690758,3313.0,3312.7,0.00170527]
[1642087602222,3.65,3313.1,3313.0,0.00650858]
[1642087602527,0.434,3313.2,3312.6,0.76557791]
[1642087602722,0.00227369,3313.1,3312.7,0.02546933]
[1642087602927,0.00227369,3313.1,3312.6,0.76557791]
[1642087603124,0.20159355,3313.0,3312.6,0.2781586]
[1642087603424,0.00113685,3312.9,3312.2,0.04289418]
[1642087603722,0.00113685,3312.9,3312.3,0.00227369]
[1642087604125,0.442096,3312.8,3312.3,0.00227369]
[1642087604325,0.7548059,3312.7,3312.3,0.00227369]
[1642087604726,0.434,3312.8,3312.3,0.00227369]
[1642087604925,0.434,3312.8,3312.2,0.04289418]
[1642087604926,0.49772177,3312.3,3312.2,0.04289418]
[1642087605129,0.93172177,3312.3,3312.2,0.04289418]
[1642087605371,0.434,3312.3,3312.2,0.04289418]
[1642087605570,0.434,3312.3,3312.2,1.34271312]
[1642087606673,4.634,3312.3,3311.8,0.120609]
[1642087606873,0.03439925,3312.2,3311.8,0.120609]
[1642087607074,0.04288217,3312.1,3311.9,0.0022737]
[1642087607574,4.634,3312.3,3311.9,0.0022737]
[1642087607974,0.49756321,3311.9,3311.8,1.21712561]
[1642087608374,0.00170527,3312.2,3311.8,1.21712561]
[1642087608575,0.43570527,3312.2,3311.8,1.21712561]
[1642087608777,0.00113685,3312.1,3311.8,1.21712561]
[1642087609029,0.00113685,3312.1,3311.8,1.51712561]
[1642087609223,0.00113685,3312.1,3311.8,1.39651661]
[1642087609624,0.49997936,3311.9,3311.8,1.39651661]
[1642087610224,0.00113685,3312.1,3311.8,1.39651661]
[1642087610532,0.00113685,3312.1,3311.9,0.01291746]
[1642087610725,0.49307246,3312.5,3312.0,6.65]
[1642087610926,0.49307246,3312.5,3312.1,0.56661341]
[1642087611126,0.00170527,3312.4,3312.1,0.56255438]
[1642087611527,0.00113685,3312.3,3312.1,0.56255438]
[1642087611923,0.01671936,3313.3,3313.0,0.55700657]
[1642087612124,0.0073895,3313.4,3313.2,1.49048859]
[1642087612323,3.1,3313.3,3313.2,1.49048859]
[1642087612524,0.01153766,3313.2,3312.2,3.8815]
[1642087612770,3.1,3313.3,3312.1,1.1898]
[1642087613077,3.4,3313.3,3312.1,1.1898]
[1642087613271,0.49971377,3312.6,3312.1,1.1898]
[1642087613471,0.49971377,3312.6,3312.4,0.46901768]
[1642087613671,0.00227369,3312.5,3312.4,0.46901768]
[1642087614673,0.00227369,3312.5,3312.2,1.70453448]
[1642087614874,0.00227369,3312.5,3312.2,1.40453448]
[1642087615083,0.00170527,3312.4,3312.2,1.40453448]
[1642087615475,0.00113685,3312.3,3312.2,1.40453448]
[1642087615680,1.20165552,3311.7,3311.5,0.57058387]
[1642087615877,1.20165552,3311.7,3311.2,5.5339]
[1642087616077,0.7548,3311.6,3311.2,5.5339]
[1642087616278,0.00462381,3311.5,3311.1,6.2419]
[1642087616534,0.7548,3311.6,3311.1,6.2419]
[1642087616825,0.7548,3311.6,3311.2,0.00511581]
[1642087617022,0.7548,3311.6,3311.3,1.99173869]
[1642087617522,0.7548,3311.6,3311.3,1.49046721]
[1642087617724,0.7548,3311.6,3311.4,0.00502492]
[1642087617930,0.7548,3311.6,3311.3,1.49046721]
[1642087618125,0.7548,3311.6,3310.8,7.00036433]
[1642087618126,0.0409261,3311.5,3310.8,7.00036433]
[1642087618525,0.75494,3311.3,3310.9,0.00284211]
[1642087618726,1.5099,3311.3,3310.8,7.00036433]
[1642087618926,0.00170527,3311.2,3310.8,7.00036433]
[1642087619325,0.00113684,3311.1,3310.9,1.16765047]
[1642087619725,0.00170527,3311.2,3310.9,1.16765047]
[1642087620127,0.00113684,3311.1,3310.9,0.96256547]
[1642087620379,0.00113684,3311.1,3310.8,0.71996433]
[1642087620994,6.65,3311.0,3310.0,0.1]
[1642087621185,0.434,3310.9,3310.0,0.1]
[1642087621384,3.021155,3310.7,3310.1,0.00454739]
[1642087621581,3.021155,3310.7,3310.0,0.1]
[1642087621582,2.69986,3310.7,3310.0,1.42711132]
[1642087621781,0.00284212,3310.6,3310.0,1.42711132]
[1642087621981,0.00284212,3310.6,3309.7,5.567]
[1642087621982,0.00928745,3310.5,3309.7,5.567]
[1642087622282,0.00170527,3310.4,3309.8,0.00170527]
[1642087622481,0.75529,3310.1,3309.3,0.120672]
[1642087622880,0.00113685,3310.0,3309.6,1.52066046]
[1642087623081,0.00113685,3310.0,3309.6,1.53272238]
[1642087623282,0.00170527,3309.9,3309.6,1.53272238]
[1642087623489,0.00170527,3309.9,3307.7,0.60418]
[1642087623490,6.65,3309.8,3307.7,0.60418]
[1642087623685,6.65,3309.8,3307.3,5.49958204]
[1642087623686,0.75564,3309.3,3307.9,7.5132]
[1642087623886,0.75564,3309.3,3308.4,0.00682108]
[1642087624337,1.25535377,3309.3,3308.7,1.41436921]
[1642087624536,2.7,3309.2,3308.7,0.27239892]
[1642087624737,0.81918073,3309.1,3308.8,0.00454739]
[1642087624936,0.49971377,3309.3,3308.8,0.00454739]
[1642087625738,0.49971377,3309.3,3308.0,3.957339]
[1642087625739,0.05170236,3309.0,3308.0,3.957339]
[1642087625936,2.55,3308.9,3308.0,3.50961269]
[1642087626142,0.05830395,3308.8,3308.1,0.00170527]
[1642087626338,2.54115079,3308.8,3308.1,0.00170527]
[1642087626538,0.00170527,3308.7,3308.2,1.46390927]
[1642087626742,6.65,3308.6,3308.2,1.18552376]
[1642087626939,0.434,3308.5,3307.5,6.58604435]
[1642087627140,0.434,3308.5,3307.5,5.98304435]
[1642087627141,7.40573,3308.4,3307.5,5.98304435]
[1642087627340,0.02862269,3308.3,3307.5,5.40300527]
[1642087627540,0.02862269,3308.3,3306.9,3.0686051]
[1642087627541,0.03811577,3308.1,3307.2,0.47478512]
[1642087627776,0.44622223,3308.2,3307.2,0.47478512]
[1642087627777,0.03261669,3307.9,3307.2,0.47478512]
[1642087627979,6.68448114,3307.8,3306.9,2.47149549]
[1642087628179,6.68448114,3307.8,3306.4,3.75903893]
[1642087628180,0.01266396,3307.0,3306.4,3.75903893]
[1642087628379,0.75605,3306.9,3306.4,1.9924442]
[1642087628577,0.434,3307.3,3306.5,0.00284212]
[1642087628785,0.04176829,3307.1,3306.4,0.16098632]
[1642087628977,6.60397897,3307.2,3306.6,0.78140824]
[1642087629183,0.00284212,3307.0,3306.6,0.78140824]
[1642087629380,0.00341055,3307.1,3306.6,0.78140824]
[1642087629579,0.7582637,3306.9,3306.6,0.78140824]
[1642087629780,0.75599,3306.9,3306.6,0.66080824]
[1642087630081,0.78914631,3306.8,3306.6,0.61080824]
[1642087630285,0.03312631,3306.8,3306.7,1.23458435]
[1642087630483,0.03192259,3306.6,3305.7,0.44871852]
[1642087630681,0.02433165,3306.4,3304.8,1.0120064]
[1642087630881,0.49971377,3306.0,3305.5,1.18857896]
[1642087631082,0.49971377,3306.0,3305.8,0.56062914]
[1642087631534,0.00284212,3306.3,3305.9,1.28788937]
[1642087631730,0.0010744,3306.3,3305.9,1.28788937]
[1642087631930,0.75597,3306.5,3305.9,1.28788937]
[1642087631931,0.00227369,3306.2,3305.9,1.28788937]
[1642087632131,1.51446369,3306.2,3305.9,1.28788937]
[1642087632334,1.51219,3306.2,3305.6,0.00113685]
[1642087632534,0.47287935,3306.1,3305.6,0.00113685]
[1642087632731,0.47287935,3306.1,3304.5,0.01284434]